fUSD/lending_fUSD_20250824
["ID","MTS","AMOUNT","RATE_DAILY","PERIOD"]
[381109807,1756048257303,-400.0,0.00023214,2]
[381109808,1756048257313,-254.40234134,0.00023214,2]
[381109809,1756048257322,-626.31,0.00023214,2]
[381109810,1756048257332,-400.0,0.00023214,2]
[381109811,1756048257341,-1014.28,0.00023214,2]
[381109812,1756048257351,-381.79389356,0.00023214,2]
[381109813,1756048257360,-297.9376864,0.00023214,2]
[381109814,1756048257370,-400.0,0.00023214,2]
[381109815,1756048257380,-400.0,0.00023214,2]
[381109816,1756048257389,-612.3,0.00023214,2]
[381109817,1756048257400,-400.0,0.00023214,2]
[381109818,1756048257409,-955.81,0.00023214,2]
[381109819,1756048257419,-400.0,0.00023214,2]
[381109820,1756048257429,-400.0,0.00023214,2]
[381109821,1756048257439,-400.0,0.00023214,2]
[381109822,1756048257448,-1097.21,0.00023214,2]
[381109823,1756048257458,-400.0,0.00023214,2]
[381109824,1756048257468,-400.0,0.00023214,2]
[381109825,1756048257477,-400.0,0.00023214,2]
[381109826,1756048257486,-400.0,0.00023214,2]
[381109827,1756048257496,-640.44,0.00023214,2]
[381109828,1756048257505,-583.22,0.00023214,2]
[381109829,1756048257514,-400.0,0.00023214,2]
[381109830,1756048257523,-400.0,0.00023214,2]
[381109831,1756048257532,-400.0,0.00023214,2]
[381109832,1756048257543,-400.0,0.00023214,2]
[381109833,1756048257558,-400.0,0.00023214,2]
[381109834,1756048257568,-400.0,0.00023214,2]
[381109835,1756048257577,-400.0,0.00023214,2]
[381109836,1756048257587,-400.0,0.00023214,2]
[381109837,1756048257596,-400.0,0.00023214,2]
[381109838,1756048257605,-1284.67,0.00023214,2]
[381109839,1756048257615,-1187.0,0.00023214,2]
[381109840,1756048257624,-400.0,0.00023214,2]
[381109841,1756048257633,-400.0,0.00023214,2]
[381109842,1756048257643,-400.0,0.00023214,2]
[381109843,1756048257652,-400.0,0.00023214,2]
[381109844,1756048257661,-400.0,0.00023214,2]
[381109845,1756048257671,-400.0,0.00023214,2]
[381109846,1756048257681,-400.0,0.00023214,2]
[381109847,1756048257690,-759.47,0.00023214,2]
[381109848,1756048257699,-589.81,0.00023214,2]
[381109849,1756048257709,-400.0,0.00023214,2]
[381109850,1756048257718,-1260.18,0.00023214,2]
[381109851,1756048257727,-400.40767361,0.00023214,2]
[381109852,1756048257736,-400.0,0.00023214,2]
[381109853,1756048257746,-400.0,0.00023214,2]
[381109854,1756048257756,-400.0,0.00023214,2]
[381109855,1756048257766,-400.0,0.00023214,2]
[381109856,1756048257776,-400.0,0.00023214,2]
[381109857,1756048257787,-432.46,0.00023214,2]
[381109858,1756048257797,-1372.83,0.00023214,2]
[381109859,1756048257808,-732.38,0.00023214,2]
[381109860,1756048257819,-400.0,0.00023214,2]
[381109861,1756048257828,-400.0,0.00023214,2]
[381109862,1756048257838,-614.76,0.00023214,2]
[381109863,1756048257848,-885.51,0.00023214,2]
[381109864,1756048257858,-400.0,0.00023214,2]
[381109865,1756048257868,-400.0,0.00023214,2]
[381109866,1756048257879,-400.0,0.00023214,2]
[381109867,1756048257889,-400.0,0.00023214,2]
[381109868,1756048257899,-1582.1,0.00023214,2]
[381109869,1756048257909,-640.65,0.00023214,2]
[381109870,1756048257919,-400.0,0.00023214,2]
[381109871,1756048257931,-400.0,0.00023214,2]
[381109872,1756048257940,-400.0,0.00023214,2]
[381109873,1756048257950,-400.0,0.00023214,2]
[381109874,1756048257959,-641.7,0.00023214,2]
[381109875,1756048257969,-400.0,0.00023214,2]
[381109876,1756048257978,-400.0,0.00023214,2]
[381109877,1756048257988,-604.95,0.00023214,2]
[381109878,1756048257997,-400.0,0.00023214,2]
[381109879,1756048258007,-400.0,0.00023214,2]
[381109880,1756048258016,-400.0,0.00023214,2]
[381109881,1756048258026,-400.75216132,0.00023214,2]
[381109882,1756048258035,-400.0,0.00023214,2]
[381109883,1756048258045,-923.76,0.00023214,2]
[381109884,1756048258055,-1034.52,0.00023214,2]
[381109885,1756048258065,-976.22,0.00023214,2]
[381109886,1756048258075,-1305.17,0.00023214,2]
[381109887,1756048258085,-400.0,0.00023214,2]
[381109888,1756048258095,-400.0,0.00023214,2]
[381109889,1756048258105,-457.08,0.00023214,2]
[381109890,1756048258115,-569.61,0.00023214,2]
[381109891,1756048258124,-400.0,0.00023214,2]
[381109892,1756048258134,-943.79,0.00023214,2]
[381109893,1756048258144,-400.0,0.00023214,2]
[381109894,1756048258154,-400.0,0.00023214,2]
[381109895,1756048258164,-400.0,0.00023214,2]
[381109896,1756048258174,-400.0,0.00023214,2]
[381109897,1756048258188,-2797.55,0.00023214,2]
[381109898,1756048258203,-673.38,0.00023214,2]
[381109899,1756048258212,-400.0,0.00023214,2]
[381109900,1756048258223,-466.84123942,0.00023214,2]
[381109901,1756048258232,-400.0,0.00023214,2]
[381109902,1756048258242,-1162.28,0.00023214,2]
[381109903,1756048258252,-400.0,0.00023214,2]
[381109904,1756048258263,-400.0,0.00023214,2]
[381109905,1756048258274,-400.0,0.00023214,2]
[381109906,1756048258283,-400.0,0.00023214,2]
[381109907,1756048258292,-402.74748821,0.00023214,2]
[381109908,1756048258302,-400.0,0.00023214,2]
[381109909,1756048258311,-400.0,0.00023214,2]
[381109910,1756048258321,-849.77,0.00023214,2]
[381109911,1756048258331,-400.0,0.00023214,2]
[381109912,1756048258340,-400.0,0.00023214,2]
[381109913,1756048258349,-400.0,0.00023214,2]
[381109914,1756048258358,-400.0,0.00023214,2]
[381109915,1756048258368,-1059.32,0.00023214,2]
[381109916,1756048258377,-400.0,0.00023214,2]
[381109917,1756048258387,-400.0,0.00023214,2]
[381109918,1756048258397,-400.0,0.00023214,2]
[381109919,1756048258406,-400.0,0.00023214,2]
[381109920,1756048258416,-400.0,0.00023214,2]
[381109921,1756048258425,-989.71,0.00023214,2]
[381109922,1756048258435,-400.0,0.00023214,2]
[381109923,1756048258445,-1178.05,0.00023214,2]
[381109924,1756048258455,-400.0,0.00023214,2]
[381109925,1756048258465,-400.0,0.00023214,2]
[381109926,1756048258475,-400.0,0.00023214,2]
[381109927,1756048258484,-400.0,0.00023214,2]
[381109928,1756048258493,-400.0,0.00023214,2]
[381109929,1756048258503,-1106.4,0.00023214,2]
[381109930,1756048258512,-631.11,0.00023214,2]
[381109931,1756048258522,-312.65981913,0.00023214,2]
[381109932,1756048258531,-400.0,0.00023214,2]
[381109933,1756048258541,-400.0,0.00023214,2]
[381109934,1756048258550,-400.0,0.00023214,2]
[381109935,1756048258559,-710.96,0.00023214,2]
[381109936,1756048258568,-400.0,0.00023214,2]
[381109937,1756048258577,-400.0,0.00023214,2]
[381109938,1756048258587,-400.0,0.00023214,2]
[381109939,1756048258596,-400.0,0.00023214,2]
[381109940,1756048258606,-400.0,0.00023214,2]
[381109941,1756048258615,-1436.12,0.00023214,2]
[381109942,1756048258625,-400.0,0.00023214,2]
[381109943,1756048258634,-400.0,0.00023214,2]
[381109944,1756048258643,-400.0,0.00023214,2]
[381109945,1756048258652,-400.0,0.00023214,2]
[381109946,1756048258662,-1117.25,0.00023214,2]
[381109947,1756048258671,-400.0,0.00023214,2]
[381109948,1756048258681,-400.0,0.00023214,2]
[381109949,1756048258691,-932.02,0.00023214,2]
[381109950,1756048258700,-420.77,0.00023214,2]
[381109951,1756048258709,-5164.23,0.00023214,2]
[381109952,1756048258719,-400.0,0.00023214,2]
[381109953,1756048258728,-400.0,0.00023214,2]
[381109954,1756048258737,-400.0,0.00023214,2]
[381109955,1756048258746,-867.08,0.00023214,2]
[381109956,1756048258756,-400.0,0.00023214,2]
[381109957,1756048258765,-400.0,0.00023214,2]
[381109958,1756048258776,-826.34,0.00023214,2]
[381109959,1756048258785,-400.0,0.00023214,2]
[381109960,1756048258795,-1292.96,0.00023214,2]
[381109961,1756048258805,-400.0,0.00023214,2]
[381109962,1756048258815,-745.23,0.00023214,2]
[381109963,1756048258824,-867.07,0.00023214,2]
[381109964,1756048258834,-400.0,0.00023214,2]
[381109965,1756048258843,-657.81,0.00023214,2]
[381109966,1756048258853,-1268.85,0.00023214,2]
[381109967,1756048258865,-825.24,0.00023214,2]
[381109968,1756048258874,-400.0,0.00023214,2]
[381109969,1756048258884,-400.0,0.00023214,2]
[381109970,1756048258894,-400.0,0.00023214,2]
[381109971,1756048258903,-400.0,0.00023214,2]
[381109972,1756048258912,-1149.74,0.00023214,2]
[381109973,1756048258922,-931.3,0.00023214,2]
[381109974,1756048258933,-451.92,0.00023214,2]
[381109975,1756048258943,-223.097655,0.00023214,2]
[381109976,1756048258952,-400.0,0.00023214,2]
[381109977,1756048258963,-663.7,0.00023214,2]
[381109978,1756048258972,-400.0,0.00023214,2]
[381109979,1756048258982,-1111.21,0.00023214,2]
[381109980,1756048258992,-400.0,0.00023214,2]
[381109981,1756048259002,-400.0,0.00023214,2]
[381109982,1756048259011,-400.0,0.00023214,2]
[381109983,1756048259022,-400.0,0.00023214,2]
[381109984,1756048259032,-444.82,0.00023214,2]
[381109985,1756048259041,-400.0,0.00023214,2]
[381109986,1756048259051,-430.68,0.00023214,2]
[381109987,1756048259061,-1380.42,0.00023214,2]
[381109988,1756048259070,-880.88,0.00023214,2]
[381109989,1756048259080,-400.0,0.00023214,2]
[381109990,1756048259090,-400.0,0.00023214,2]
[381109991,1756048259099,-400.0,0.00023214,2]
[381109992,1756048259108,-507.99,0.00023214,2]
[381109993,1756048259118,-748.05,0.00023214,2]
[381109994,1756048259127,-400.0,0.00023214,2]
[381109995,1756048259137,-948.72,0.00023214,2]
[381109996,1756048259147,-400.0,0.00023214,2]
[381109997,1756048259156,-2028.35,0.00023214,2]
[381109998,1756048259166,-483.35373815,0.00023214,2]
[381109999,1756048259179,-400.0,0.00023214,2]
[381110000,1756048259190,-833.33,0.00023214,2]
[381110001,1756048259200,-3332.39,0.00023214,2]
[381110002,1756048259210,-400.0,0.00023214,2]
[381110003,1756048259220,-400.0,0.00023214,2]
[381110004,1756048259231,-400.0,0.00023214,2]
[381110005,1756048259241,-400.0,0.00023214,2]
[381110006,1756048259252,-1515.89,0.00023214,2]
[381110007,1756048259262,-1182.8,0.00023214,2]
[381110008,1756048259271,-534.42,0.00023214,2]
[381110009,1756048259280,-1000.0,0.00023214,2]
[381110010,1756048259290,-400.0,0.00023214,2]
[381110011,1756048259300,-789.47,0.00023214,2]
[381110012,1756048259309,-400.0,0.00023214,2]
[381110013,1756048259318,-400.0,0.00023214,2]
[381110014,1756048259328,-400.0,0.00023214,2]
[381110015,1756048259337,-502.79,0.00023214,2]
[381110016,1756048259347,-556.59,0.00023214,2]
[381110017,1756048259357,-400.0,0.00023214,2]
[381110018,1756048259367,-870.25,0.00023214,2]
[381110019,1756048259377,-780.32,0.00023214,2]
[381110020,1756048259389,-1470.65,0.00023214,2]
[381110021,1756048259399,-400.0,0.00023214,2]
[381110022,1756048259409,-400.0,0.00023214,2]
[381110023,1756048259420,-400.0,0.00023214,2]
[381110024,1756048259432,-400.0,0.00023214,2]
[381110025,1756048259442,-400.0,0.00023214,2]
[381110026,1756048259452,-924.02,0.00023214,2]
[381110027,1756048259462,-400.0,0.00023214,2]
[381110028,1756048259472,-805.76,0.00023214,2]
[381110029,1756048259482,-962.0,0.00023214,2]
[381110030,1756048259492,-1515.2,0.00023214,2]
[381110031,1756048259502,-400.0,0.00023214,2]
[381110032,1756048259512,-400.0,0.00023214,2]
[381110033,1756048259523,-1003.5,0.00023214,2]
[381110034,1756048259533,-343.06470719,0.00023214,2]
[381110035,1756048259543,-1286.24,0.00023214,2]
[381110036,1756048259553,-400.0,0.00023214,2]
[381110037,1756048259563,-400.0,0.00023214,2]
[381110038,1756048259573,-400.0,0.00023214,2]
[381110039,1756048259583,-400.0,0.00023214,2]
[381110040,1756048259593,-400.0,0.00023214,2]
[381110041,1756048259602,-425.09,0.00023214,2]
[381110042,1756048259612,-400.0,0.00023214,2]
[381110043,1756048259622,-400.0,0.00023214,2]
[381110044,1756048259632,-1497.64,0.00023214,2]
[381110045,1756048259642,-883.4,0.00023214,2]
[381110046,1756048259651,-696.45,0.00023214,2]
[381110047,1756048259662,-400.0,0.00023214,2]
[381110048,1756048259672,-400.0,0.00023214,2]
[381110049,1756048259683,-400.0,0.00023214,2]
[381110050,1756048259693,-400.0,0.00023214,2]
[381110051,1756048259703,-400.0,0.00023214,2]
[381110052,1756048259712,-600.55,0.00023214,2]
[381110053,1756048259722,-1513.95,0.00023214,2]
[381110054,1756048259732,-400.0,0.00023214,2]
[381110055,1756048259742,-400.27189107,0.00023214,2]
[381110056,1756048259751,-400.97770057,0.00023214,2]
[381110057,1756048259762,-441.85,0.00023214,2]
[381110058,1756048259771,-400.0,0.00023214,2]
[381110059,1756048259784,-814.49,0.00023214,2]
[381110060,1756048259793,-400.0,0.00023214,2]
[381110061,1756048259803,-3398.94,0.00023214,2]
[381110062,1756048259813,-1438.33,0.00023214,2]
[381110063,1756048259822,-400.0,0.00023214,2]
[381110064,1756048259832,-541.22,0.00023214,2]
[381110065,1756048259842,-1629.79,0.00023214,2]
[381110066,1756048259852,-400.0,0.00023214,2]
[381110067,1756048259861,-400.0,0.00023214,2]
[381110068,1756048259871,-400.74487584,0.00023214,2]
[381110069,1756048259880,-699.75,0.00023214,2]
[381110070,1756048259890,-400.0,0.00023214,2]
[381110071,1756048259900,-616.41,0.00023214,2]
[381110072,1756048259909,-437.06944617,0.00023214,2]
[381110073,1756048259919,-400.0,0.00023214,2]
[381110074,1756048259929,-400.0,0.00023214,2]
[381110075,1756048259938,-717.15,0.00023214,2]
[381110076,1756048259948,-827.13,0.00023214,2]
[381110077,1756048259959,-1546.63,0.00023214,2]
[381110078,1756048259968,-525.89,0.00023214,2]
[381110079,1756048259978,-400.0,0.00023214,2]
[381110080,1756048259988,-400.83192351,0.00023214,2]
[381110081,1756048259998,-1079.2,0.00023214,2]
[381110082,1756048260007,-1678.42,0.00023214,2]
[381110083,1756048260017,-978.04,0.00023214,2]
[381110084,1756048260027,-400.0,0.00023214,2]
[381110085,1756048260037,-978.06,0.00023214,2]
[381110086,1756048260048,-400.0,0.00023214,2]
[381110087,1756048260058,-468.47,0.00023214,2]
[381110088,1756048260068,-400.0,0.00023214,2]
[381110089,1756048260079,-1779.64,0.00023214,2]
[381110090,1756048260089,-400.0,0.00023214,2]
[381110091,1756048260100,-400.0,0.00023214,2]
[381110092,1756048260111,-852.63,0.00023214,2]
[381110093,1756048260120,-2960.59,0.00023214,2]
[381110094,1756048260130,-1323.95,0.00023214,2]
[381110095,1756048260140,-400.0,0.00023214,2]
[381110096,1756048260149,-400.0,0.00023214,2]
[381110097,1756048260160,-400.0,0.00023214,2]
[381110098,1756048260170,-400.0,0.00023214,2]
[381110099,1756048260186,-400.0,0.00023214,2]
[381110100,1756048260195,-400.0,0.00023214,2]
[381110101,1756048260206,-824.48,0.00023214,2]
[381110102,1756048260216,-400.0,0.00023214,2]
[381110103,1756048260226,-400.0,0.00023214,2]
[381110104,1756048260235,-1593.65,0.00023214,2]
[381110105,1756048260246,-400.0,0.00023214,2]
[381110106,1756048260257,-400.0,0.00023214,2]
[381110107,1756048260267,-480.86,0.00023214,2]
[381110108,1756048260276,-400.0,0.00023214,2]
[381110109,1756048260286,-402.41,0.00023214,2]
[381110110,1756048260296,-1501.42,0.00023214,2]
[381110111,1756048260306,-1341.89,0.00023214,2]
[381110112,1756048260316,-400.0,0.00023214,2]
[381110113,1756048260326,-400.0,0.00023214,2]
[381110114,1756048260336,-912.25,0.00023214,2]
[381110115,1756048260347,-512.8,0.00023214,2]
[381110116,1756048260357,-400.0,0.00023214,2]
[381110117,1756048260367,-704.35,0.00023214,2]
[381110118,1756048260376,-400.0,0.00023214,2]
[381110119,1756048260387,-400.0,0.00023214,2]
[381110120,1756048260396,-400.0,0.00023214,2]
[381110121,1756048260407,-675.65,0.00023214,2]
[381110122,1756048260417,-714.92,0.00023214,2]
[381110123,1756048260427,-430.36,0.00023214,2]
[381110124,1756048260439,-400.0,0.00023214,2]
[381110125,1756048260449,-400.0,0.00023214,2]
[381110126,1756048260459,-400.0,0.00023214,2]
[381110127,1756048260469,-1095.57,0.00023214,2]
[381110128,1756048260480,-1076.76,0.00023214,2]
[381110129,1756048260490,-400.0,0.00023214,2]
[381110130,1756048260500,-695.1,0.00023214,2]
[381110131,1756048260510,-1371.89,0.00023214,2]
[381110132,1756048260519,-685.36,0.00023214,2]
[381110133,1756048260529,-400.0,0.00023214,2]
[381110134,1756048260539,-400.0,0.00023214,2]
[381110135,1756048260550,-755.16,0.00023214,2]
[381110136,1756048260560,-400.0,0.00023214,2]
[381110137,1756048260571,-1175.26,0.00023214,2]
[381110138,1756048260582,-783.98,0.00023214,2]
[381110139,1756048260593,-400.0,0.00023214,2]
[381110140,1756048260603,-400.0,0.00023214,2]
[381110141,1756048260613,-400.0,0.00023214,2]
[381110142,1756048260623,-400.0,0.00023214,2]
[381110143,1756048260633,-400.0,0.00023214,2]
[381110144,1756048260643,-400.0,0.00023214,2]
[381110145,1756048260654,-400.0,0.00023214,2]
[381110146,1756048260664,-400.0,0.00023214,2]
[381110147,1756048260674,-400.0,0.00023214,2]
[381110148,1756048260686,-400.0,0.00023214,2]
[381110149,1756048260696,-400.0,0.00023214,2]
[381110150,1756048260706,-400.0,0.00023214,2]
[381110151,1756048260716,-400.0,0.00023215,2]
[381110152,1756048260726,-641.14,0.00023215,2]
[381110153,1756048260736,-805.56,0.00023215,2]
[381110154,1756048260747,-400.0,0.00023215,2]
[381110155,1756048260758,-735.49,0.00023215,2]
[381110156,1756048260768,-928.79,0.00023215,2]
[381110157,1756048260778,-730.0,0.00023215,2]
[381110158,1756048260788,-570.62,0.00023215,2]
[381110159,1756048260798,-946.58,0.00023215,2]
[381110160,1756048260808,-400.0,0.00023215,2]
[381110161,1756048260818,-400.0,0.00023215,2]
[381110162,1756048260828,-400.0,0.00023215,2]
[381110163,1756048260838,-761.57,0.00023215,2]
[381110164,1756048260848,-400.0,0.00023215,2]
[381110165,1756048260858,-400.0,0.00023215,2]
[381110166,1756048260868,-400.0,0.00023215,2]
[381110167,1756048260878,-558.15,0.00023215,2]
[381110168,1756048260888,-400.0,0.00023215,2]
[381110169,1756048260898,-744.77,0.00023215,2]
[381110170,1756048260909,-563.44,0.00023215,2]
[381110171,1756048260919,-1351.04,0.00023215,2]
[381110172,1756048260931,-400.0,0.00023215,2]
[381110173,1756048260941,-400.0,0.00023215,2]
[381110174,1756048260951,-400.0,0.00023215,2]
[381110175,1756048260961,-400.0,0.00023215,2]
[381110176,1756048260971,-722.83,0.00023215,2]
[381110177,1756048260981,-400.0,0.00023215,2]
[381110178,1756048260991,-400.0,0.00023215,2]
[381110179,1756048261336,-400.0,0.00023215,2]
[381110180,1756048261367,-701.83,0.00023215,2]
[381110181,1756048261378,-736.15,0.00023215,2]
[381110182,1756048261388,-403.49,0.00023215,2]
[381110183,1756048261398,-400.0,0.00023215,2]
[381110184,1756048261408,-425.01,0.00023215,2]
[381110185,1756048261418,-980.92,0.00023215,2]
[381110186,1756048261427,-400.0,0.00023215,2]
[381110187,1756048261439,-1315.71,0.00023215,2]
[381110188,1756048261449,-400.0,0.00023215,2]
[381110189,1756048261458,-336.07465285,0.00023215,2]
[381110190,1756048261467,-400.0,0.00023215,2]
[381110191,1756048261477,-400.0,0.00023215,2]
[381110192,1756048261487,-400.0,0.00023215,2]
[381110193,1756048261496,-400.0,0.00023215,2]
[381110194,1756048261506,-696.07,0.00023215,2]
[381110195,1756048261516,-400.0,0.00023215,2]
[381110196,1756048261525,-549.99,0.00023215,2]
[381110197,1756048261535,-400.0,0.00023215,2]
[381110198,1756048261545,-400.0,0.00023215,2]
[381110199,1756048261554,-673.7,0.00023215,2]
[381110200,1756048261564,-898.01,0.00023215,2]
[381110201,1756048261573,-667.37,0.00023215,2]
[381110202,1756048261583,-752.38,0.00023215,2]
[381110203,1756048261593,-400.0,0.00023215,2]
[381110204,1756048261603,-400.0,0.00023215,2]
[381110205,1756048261614,-400.0,0.00023215,2]
[381110206,1756048261624,-400.0,0.00023215,2]
[381110207,1756048261634,-400.0,0.00023215,2]
[381110208,1756048261644,-977.5,0.00023215,2]
[381110209,1756048261653,-400.0,0.00023215,2]
[381110210,1756048261663,-400.0,0.00023215,2]
[381110211,1756048261673,-400.0,0.00023215,2]
[381110212,1756048261685,-400.0,0.00023215,2]
[381110213,1756048261695,-1022.49,0.00023215,2]
[381110214,1756048261706,-400.0,0.00023215,2]
[381110215,1756048261715,-400.0,0.00023215,2]
[381110216,1756048261725,-400.0,0.00023215,2]
[381110217,1756048261735,-400.0,0.00023215,2]
[381110218,1756048261745,-513.96745317,0.00023215,2]
[381110219,1756048261755,-400.0,0.00023215,2]
[381110220,1756048261765,-539.62,0.00023215,2]
[381110221,1756048261775,-575.94,0.00023215,2]
[381110222,1756048261785,-1732.36,0.00023215,2]
[381110223,1756048261795,-400.0,0.00023215,2]
[381110224,1756048261805,-400.0,0.00023215,2]
[381110225,1756048261815,-400.0,0.00023215,2]
[381110226,1756048261824,-1020.53,0.00023215,2]
[381110227,1756048261834,-277.3517913,0.00023215,2]
[381110228,1756048261844,-651.51,0.00023215,2]
[381110229,1756048261854,-400.0,0.00023215,2]
[381110230,1756048261864,-400.0,0.00023215,2]
[381110231,1756048261874,-400.94060104,0.00023215,2]
[381110232,1756048261884,-749.11,0.00023215,2]
[381110233,1756048261893,-482.45,0.00023215,2]
[381110234,1756048261903,-400.0,0.00023215,2]
[381110235,1756048261913,-400.0,0.00023215,2]
[381110236,1756048261923,-400.0,0.00023215,2]
[381110237,1756048261932,-400.0,0.00023215,2]
[381110238,1756048261941,-400.0,0.00023215,2]
[381110239,1756048261951,-635.29,0.00023215,2]
[381110240,1756048261960,-511.62,0.00023215,2]
[381110241,1756048261970,-400.0,0.00023215,2]
[381110242,1756048261979,-673.94,0.00023215,2]
[381110243,1756048261988,-400.0,0.00023215,2]
[381110244,1756048261998,-400.0,0.00023215,2]
[381110245,1756048262008,-888.65,0.00023215,2]
[381110246,1756048262018,-400.0,0.00023215,2]
[381110247,1756048262028,-535.74,0.00023215,2]
[381110248,1756048262037,-400.0,0.00023215,2]
[381110249,1756048262047,-400.0,0.00023215,2]
[381110250,1756048262056,-400.0,0.00023215,2]
[381110251,1756048262066,-400.0,0.00023215,2]
[381110252,1756048262075,-400.0,0.00023215,2]
[381110253,1756048262085,-1281.35,0.00023215,2]
[381110254,1756048262095,-713.12,0.00023215,2]
[381110255,1756048262104,-400.0,0.00023215,2]
[381110256,1756048262114,-852.69,0.00023215,2]
[381110257,1756048262123,-501.86,0.00023215,2]
[381110258,1756048262132,-1152.24,0.00023215,2]
[381110259,1756048262142,-400.0,0.00023215,2]
[381110260,1756048262151,-1082.5,0.00023215,2]
[381110261,1756048262161,-400.0,0.00023215,2]
[381110262,1756048262171,-641.09,0.00023215,2]
[381110263,1756048262182,-600.8,0.00023215,2]
[381110264,1756048262192,-690.63,0.00023215,2]
[381110265,1756048262201,-919.96,0.00023215,2]
[381110266,1756048262210,-457.14,0.00023215,2]
[381110267,1756048262220,-914.59,0.00023215,2]
[381110268,1756048262230,-400.0,0.00023215,2]
[381110269,1756048262240,-1399.87,0.00023215,2]
[381110270,1756048262250,-611.44,0.00023215,2]
[381110271,1756048262261,-2650.07,0.00023215,2]
[381110272,1756048262272,-400.0,0.00023215,2]
[381110273,1756048262282,-1592.63,0.00023215,2]
[381110274,1756048262291,-634.49,0.00023215,2]
[381110275,1756048262301,-400.0,0.00023215,2]
[381110276,1756048262311,-1290.49,0.00023215,2]
[381110277,1756048262320,-400.0,0.00023215,2]
[381110278,1756048262331,-688.28,0.00023215,2]
[381110279,1756048262340,-400.0,0.00023215,2]
[381110280,1756048262350,-671.48,0.00023215,2]
[381110281,1756048262360,-400.0,0.00023215,2]
[381110282,1756048262371,-523.43,0.00023215,2]
[381110283,1756048262380,-400.0,0.00023215,2]
[381110284,1756048262390,-400.0,0.00023215,2]
[381110285,1756048262400,-1244.13,0.00023215,2]
[381110286,1756048262410,-921.44,0.00023215,2]
[381110287,1756048262419,-1098.27,0.00023215,2]
[381110288,1756048262431,-400.0,0.00023215,2]
[381110289,1756048262440,-400.0,0.00023215,2]
[381110290,1756048262450,-422.69,0.00023215,2]
[381110291,1756048262460,-400.0,0.00023215,2]
[381110292,1756048262470,-400.0,0.00023215,2]
[381110293,1756048262481,-1158.27,0.00023215,2]
[381110294,1756048262490,-431.23,0.00023215,2]
[381110295,1756048262500,-400.0,0.00023215,2]
[381110296,1756048262509,-1629.96,0.00023215,2]
[381110297,1756048262519,-785.21,0.00023215,2]
[381110298,1756048262528,-711.14,0.00023215,2]
[381110299,1756048262538,-2522.49,0.00023215,2]
[381110300,1756048262548,-400.0,0.00023215,2]
[381110301,1756048262559,-702.46,0.00023215,2]
[381110302,1756048262568,-400.0,0.00023215,2]
[381110303,1756048262578,-400.0,0.00023215,2]
[381110304,1756048262587,-723.48,0.00023215,2]
[381110305,1756048262597,-400.0,0.00023215,2]
[381110306,1756048262607,-400.0,0.00023215,2]